Cogmind - Beta 11 @@@ ROGUE MODE // 2022.04.11 @ 02:39:35 Player: Dytto Result: Destroyed by S-10 Pest with Light Assault Rifle Performance ------------- Evolutions (0) 0 Regions Visited (4) 800 Robots Destroyed (10) 50 Value Destroyed (232) 232 Prototype IDs (23) 460 Alien Tech Used (0) 0 Bonus (300) 300 TOTAL SCORE: 1842 Bonus ------- Aligned with FarCom 300 Cogmind --------- Core Integrity 0/250 Matter 281/300 Energy 250/250 System Corruption 0% Temperature Cool (6) Movement Rolling (105) Ox1 Location -9/Mines Parts ------- > --- POWER (1) -------- Ion Engine > --- PROPULSION (2) --- Armored Wheel > --- UTILITY (2) ------ Cloak of Protection Light Armor Plating > --- WEAPON (2) ------- Small Laser Assault Rifle > --- INVENTORY (5) ---- Light Nuclear Core Aluminum Leg Large Battery (200) Power Shielding EM Pulse Gun Peak State ------------ > --- POWER ------------ Ion Engine > --- PROPULSION ------- Aluminum Leg Aluminum Leg > --- UTILITY ---------- Cloak of Protection Light Armor Plating > --- WEAPON ----------- Small Laser Assault Rifle > --- INVENTORY -------- Light Nuclear Core Aluminum Leg Aluminum Leg Power Shielding [Rating: 14] Favorites ----------- Power Ion Engine Engine Ion Engine Propulsion Aluminum Leg Leg Aluminum Leg Wheel Wheel Utility Light Armor Plating Device Cloak of Protection Protection Light Armor Plating Weapon Assault Rifle Energy Gun Small Laser Ballistic Gun Assault Rifle Launcher Grenade Launcher Special Weapon Mining Laser Special Melee Weapon Datajack Build | -11 -10 -10 -10 -9 ------- Run | Scr Mat Min Exi Min Slots Evolved . | . . . . . Power . | . . . . . Propulsion . | . . . . . Utility . | . . . . . Weapon . | . . . . . Parts Attached 22 | 5 15 . 1 1 Power 2 | 1 1 . . . Engine 2 | 1 1 . . . Core . | . . . . . Reactor . | . . . . . Propulsion 7 | 2 4 . . 1 Treads . | . . . . . Leg 4 | . 4 . . . Wheel 3 | 2 . . . 1 Hover . | . . . . . Flight . | . . . . . Utility 3 | . 2 . 1 . Device 1 | . . . 1 . Storage . | . . . . . Processor . | . . . . . Hackware . | . . . . . Protection 2 | . 2 . . . Artifact . | . . . . . Weapon 10 | 2 8 . . . Energy Gun 3 | . 3 . . . Energy Cannon . | . . . . . Ballistic Gun 3 | 2 1 . . . Ballistic Cannon . | . . . . . Launcher 1 | . 1 . . . Special Weapon 1 | . 1 . . . Impact Weapon . | . . . . . Slashing Weapon . | . . . . . Piercing Weapon . | . . . . . Special Melee Weapon 2 | . 2 . . . Unidentified Prototypes . | . . . . . Parts Lost 8 | . 8 . . . Power 1 | . 1 . . . Propulsion 2 | . 2 . . . Utility . | . . . . . Weapon 5 | . 5 . . . Highest Loss Streak 5 | . 5 . . . To Critical Strikes . | . . . . . Average Slot Usage (%) 88 | . 77 100 100 85 Engine 13 | . 13 14 14 14 Leg 19 | . 15 28 28 1 Wheel 6 | . 11 . . 13 Device 3 | . . . 5 14 Protection 16 | . 9 28 22 14 Energy Gun 11 | . 8 14 14 14 Ballistic Gun 11 | . 8 14 14 14 Launcher 2 | . 5 . . . Special Weapon 1 | . 2 . . . Naked Turns . | . . . . . Heaviest Build 19 | 6 12 12 19 19 Greatest Support 26 | 26 26 20 20 20 Greatest Overweight (x) 1 | . . . . 1 Average Overweight (x) . | . . . . . Largest Inventory Capacity 5 | 5 5 5 5 5 Average Capacity 5 | 5 5 5 5 5 Most Carried 5 | 3 4 4 5 5 Average Carried 3 | 1 3 4 4 4 Final Capacity 5 | 5 5 5 5 5 Final Carried 5 | 3 4 4 4 5 Class Distribution -------------------- 100% | Mutant Dominant Class ---------------- Mutant | -10/Materials Mutant | -10/Mines Mutant | -10/Exiles Mutant | -9/Mines Resources | -11 -10 -10 -10 -9 ----------- Run | Scr Mat Min Exi Min Matter Collected 411 | 226 146 14 . 25 Remotely . | . . . . . Salvage Created 145 | . 130 . . 15 Parts 22 | . 20 . . 2 Haulers Intercepted . | . . . . . Recyclers Shooed . | . . . . . Parts Field Recycled . | . . . . . Retrieved Matter . | . . . . . Parts Self-Destructed . | . . . . . Prevented . | . . . . . Kills | -11 -10 -10 -10 -9 ------- Run | Scr Mat Min Exi Min Combat Hostiles Destroyed 8 | . 7 . . 1 Guns 3 | . 2 . . 1 Cannons 1 | . 1 . . . AOE 4 | . 4 . . . Classes Destroyed 3 | . 3 . . . Builder 2 | . 2 . . . Swarmer 4 | . 3 . . 1 Grunt 4 | . 4 . . . Best Kill Streak 4 | . 4 . . 1 Combat Bots Only 3 | . 3 . . 1 Max Kills in Single Turn 4 | . 4 . . 1 Gunslinging . | . . . . . Exploded 3 | . 3 . . . Melee . | . . . . . Uniques/NPCs Destroyed . | . . . . . Combat | -11 -10 -10 -10 -9 -------- Run | Scr Mat Min Exi Min Damage Taken 867 | . 800 . . 67 Core 250 | . 242 . . 8 Absorbed by Shields . | . . . . . Redirected to Shielding 19 | . 19 . . . Core Remaining (%) 100 | 100 . . . . Volleys Fired 24 | . 23 . . 1 Largest 2 | . 2 . . 2 Hottest 100 | . 100 . . 60 Shots Fired 26 | . 24 . . 2 Gun 17 | . 15 . . 2 Cannon . | . . . . . Launcher 1 | . 1 . . . Special 8 | . 8 . . . Kinetic 9 | . 8 . . 1 Thermal 15 | . 14 . . 1 Explosive 1 | . 1 . . . Electromagnetic 1 | . 1 . . . Robot Hit Streak 6 | . 6 . . 1 Robot Miss Streak 4 | . 4 . . 1 Penetration Max . | . . . . . Secondary Targets . | . . . . . Shots Hit Robots 18 | . 17 . . 1 Core Hits 16 | . 15 . . 1 Critical Kills . | . . . . . Critical Parts Destroyed . | . . . . . Critical Strikes . | . . . . . Melee Attacks 3 | . 3 . . . Impact . | . . . . . Slashing . | . . . . . Piercing . | . . . . . Sneak Attacks . | . . . . . Combat Hostiles . | . . . . . Follow-up Attacks . | . . . . . Damage Inflicted 574 | . 561 . . 13 Guns 137 | . 124 . . 13 Cannons . | . . . . . Explosions 341 | . 341 . . . Melee . | . . . . . Ramming . | . . . . . Kinetic 83 | . 70 . . 13 Thermal 186 | . 186 . . . Explosive 305 | . 305 . . . Electromagnetic . | . . . . . Impact . | . . . . . Slashing . | . . . . . Piercing . | . . . . . Highest Corruption . | . . . . . Average Corruption . | . . . . . Corruption Purged . | . . . . . Corruption Blocked . | . . . . . Overload Shots . | . . . . . Overflow Damage 93 | . 93 . . . Projectiles . | . . . . . Explosions 93 | . 93 . . . Melee . | . . . . . Knockbacks . | . . . . . Impact . | . . . . . Kinetic . | . . . . . Secondary . | . . . . . Self-Inflicted Damage 188 | . 188 . . . Shots 2 | . 2 . . . Rammed . | . . . . . Targets Rammed 1 | . 1 . . . Kicked 1 | . 1 . . . Crushed . | . . . . . Highest Temperature 197 | . 197 . . 6 Average Temperature 76 | . 78 . . 4 Received Heat Transfer 384 | . 384 . . . Siege Activations . | . . . . . Robots Corrupted . | . . . . . Combat Hostiles . | . . . . . Parts Fried . | . . . . . Impact Corruptions . | . . . . . Robots Melted . | . . . . . Combat Hostiles . | . . . . . Parts Melted . | . . . . . Heat Transferred 375 | . 375 . . . Parts Sabotaged . | . . . . . Parts Stolen . | . . . . . Parts Stripped . | . . . . . Power Chain Reactions . | . . . . . Missiles Intercepted . | . . . . . Alert | -11 -10 -10 -10 -9 ------- Run | Scr Mat Min Exi Min Peak Influence 227 | . 227 41 . 35 Initial 41 | . . 41 . . Average 65 | . 89 41 . . Maximum Alert Level 1 | . 1 . . . Low Security (%) 89 | 100 84 100 . 100 Level 1 10 | . 15 . . . Level 2 . | . . . . . Level 3 . | . . . . . Level 4 . | . . . . . Level 5 . | . . . . . High Security . | . . . . . Max Security . | . . . . . Squads Dispatched . | . . . . . Investigation . | . . . . . Extermination . | . . . . . Reinforcement . | . . . . . Assault . | . . . . . Garrison . | . . . . . Intercept . | . . . . . Searches Triggered . | . . . . . Construction Impeded . | . . . . . Haulers Reinforced . | . . . . . Active Scanning Responses . | . . . . . Cargo Convoy Interrupts . | . . . . . Stealth | -11 -10 -10 -10 -9 --------- Run | Scr Mat Min Exi Min Distress Signals . | . . . . . Communications Jammed . | . . . . . Distress Signals . | . . . . . Times Spotted 19 | . 15 . . 4 Peak Tracking Total 4 | . 4 . . 4 Tactical Retreats 2 | . 1 . . 1 Traps | -11 -10 -10 -10 -9 ------- Run | Scr Mat Min Exi Min Traps Triggered . | . . . . . Indirectly . | . . . . . Trap Hack Attempts . | . . . . . Triggered . | . . . . . Disarmed . | . . . . . Reprogrammed . | . . . . . Reused . | . . . . . Traps Extracted . | . . . . . Installed . | . . . . . Triggered . | . . . . . Machines | -11 -10 -10 -10 -9 ---------- Run | Scr Mat Min Exi Min Machines Disabled 2 | . 2 . . . Max in Single Turn 2 | . 2 . . . Machines Sabotaged . | . . . . . Garrisons Compromised . | . . . . . Overloaded Fab Kills . | . . . . . Hacking | -11 -10 -10 -10 -9 --------- Run | Scr Mat Min Exi Min Machines Accessed 4 | . 2 . 2 . Terminals 2 | . 2 . . . Fabricators . | . . . . . Repair Stations . | . . . . . Recycling Units . | . . . . . Scanalyzers . | . . . . . Garrison Access . | . . . . . Total Hacks 27 | . 3 . 24 . Successful 27 | . 3 . 24 . Failed . | . . . . . Catastrophic . | . . . . . Database Lockouts . | . . . . . Manual 1 | . . . 1 . Terminals 3 | . 3 . . . Fabricators . | . . . . . Repair Stations . | . . . . . Recycling Units . | . . . . . Scanalyzers . | . . . . . Garrison Access . | . . . . . Terminal Hacks 27 | . 3 . 24 . Record 24 | . 1 . 23 . Robot Analysis 1 | . 1 . . . Branch Access Points 1 | . 1 . . . EX-Prototype ID Bank 1 | . . . 1 . Fabricator Hacks . | . . . . . Repair Station Hacks . | . . . . . Recycling Unit Hacks . | . . . . . Scanalyzer . | . . . . . Garrison Access Hacks . | . . . . . Unauthorized Hacks . | . . . . . Terminals . | . . . . . Fabricators . | . . . . . Repair Stations . | . . . . . Recycling Units . | . . . . . Scanalyzers . | . . . . . Garrison Access . | . . . . . Data Cores Recovered . | . . . . . Used . | . . . . . Hacking Detections 1 | . 1 . . . Full Trace Events . | . . . . . Feedback Events . | . . . . . Feedback Blocked . | . . . . . Robot Schematics Acquired . | . . . . . Robots Built . | . . . . . Authchips . | . . . . . Time . | . . . . . Total Robot Build Rating . | . . . . . Part Schematics Acquired . | . . . . . Parts Built . | . . . . . Authchips . | . . . . . Time . | . . . . . Total Part Build Rating . | . . . . . Parts Repaired . | . . . . . Time . | . . . . . Parts Recycled . | . . . . . Recycled Matter . | . . . . . Retrieved Matter . | . . . . . Retrieved Components . | . . . . . Parts Scanalyzed . | . . . . . Part Schematics Acquired . | . . . . . Parts Damaged . | . . . . . Bothacking | -11 -10 -10 -10 -9 ------------ Run | Scr Mat Min Exi Min Used RIF Installer . | . . . . . Robots Hacked . | . . . . . Non-combat . | . . . . . Combat . | . . . . . Robot Hacks Applied . | . . . . . Relay Couplers Released . | . . . . . Fabnet Peak Effective % . | . . . . . Robots Rewired . | . . . . . Allies Hacked . | . . . . . Hacks Repelled . | . . . . . Allies | -11 -10 -10 -10 -9 -------- Run | Scr Mat Min Exi Min Total Allies . | . . . . . Largest Group . | . . . . . Highest-Rated Group . | . . . . . Highest-Rated Ally . | . . . . . Total Orders . | . . . . . Ally Attacks . | . . . . . Total Damage . | . . . . . Kills . | . . . . . Allies Corrupted . | . . . . . Allies Melted . | . . . . . Intel | -11 -10 -10 -10 -9 ------- Run | Scr Mat Min Exi Min Robot Analysis Total 1 | . 1 . . . Derelict Logs Recovered 4 | . . 2 . 2 Drone Launches . | . . . . . Drone Recoveries . | . . . . . Exploration | -11 -10 -10 -10 -9 ------------- Run | Scr Mat Min Exi Min Turns Passed 1619 | 60 688 92 616 163 Spaces Moved 1303 | 50 551 77 480 145 Core 4 | 1 3 . . . Treads . | . . . . . Legs 849 | . 283 77 480 9 Wheels 450 | 49 265 . . 136 Hover . | . . . . . Flight . | . . . . . Fastest Speed 50 | 50 50 120 120 105 Average Speed 110 | 89 105 120 120 105 Slowest Speed 120 | 90 120 120 120 120 Overloaded Moves . | . . . . . Propulsion Burnouts . | . . . . . Robots Hopped . | . . . . . Cave-ins Triggered . | . . . . . Exploration Rate (%) 43 | 3 78 27 81 27 Regions Visited 4 Branch Regions 3 Pre-discovered Areas 2 | . . . 1 1 Known Exits Taken 2 | . 1 1 . . Unknown Exits Taken 2 | 1 . . 1 . Scrap Searched 2 | . . 1 . 1 Spaces Dug . | . . . . . Terrain Destroyed 41 | . 41 . . . Melee . | . . . . . Projectile 3 | . 3 . . . AOE 38 | . 38 . . . Terrain Rammed . | . . . . . Walls Destroyed . | . . . . . Machines Disabled . | . . . . . Actions | -11 -10 -10 -10 -9 --------- Run | Scr Mat Min Exi Min Total 1428 | 62 615 76 522 153 Wait 58 | 5 16 . 33 4 Move 1299 | 49 550 76 479 145 Hop . | . . . . . Pick Up 9 | 3 2 . 4 . Fast Attach 15 | 5 9 . . 1 Attach 5 | . 4 . 1 . Detach 5 | . 3 . 1 1 Swap 2 | . 2 . . . Drop 7 | . 2 . 4 1 Fire 24 | . 23 . . 1 Melee 3 | . 3 . . . Ram . | . . . . . Kick 1 | . 1 . . . Crush . | . . . . . Escape Stasis . | . . . . . Rewire . | . . . . . Trap . | . . . . . Miscellaneous . | . . . . . Route ------- -11/Scrapyard -10/Materials (discovered 3 exits: [*Mat x2] / *Min) -10/Mines (discovered 2 exits: [*Mat] / *Exi) -10/Exiles (discovered 2 exits: [*Min x2]) -9/Mines History --------- Turn | Location | Event 10 | -11/Scrapyard | Discovered new exit (range 14) 61 | -11/Scrapyard | Entered Materials 217 | -10/Materials | Discovered new exit (range 8) 313 | -10/Materials | Build established: Mutant 356 | -10/Materials | Core integrity fell below 50% 386 | -10/Materials | Lost 5 parts (1p2n2w) 461 | -10/Materials | Discovered new exit (range 15) 519 | -10/Materials | Core integrity fell below 20% 563 | -10/Materials | Lost 3 parts (3w) 709 | -10/Materials | Discovered new exit (range 16) 711 | -10/Materials | Identified exit to Mines 749 | -10/Materials | Entered Mines 749 | -10/Mines | Discovered new exit (range 10) 799 | -10/Mines | Learned Materials emergency access door positions 805 | -10/Mines | Identified exit to Exiles 816 | -10/Mines | Assembled infested the area 833 | -10/Mines | Deemed a non-threat by the Exiles lab entrance 841 | -10/Mines | Entered Exiles 864 | -10/Exiles | Discovered new exit (range 15) 901 | -10/Exiles | Met 8R-AWN 925 | -10/Exiles | Met EX-HEX 985 | -10/Exiles | Met EX-DEC 1010 | -10/Exiles | Visited The Gauntlet 1121 | -10/Exiles | Learned location of Zion (-7) 1157 | -10/Exiles | Met EX-BIN 1174 | -10/Exiles | Aligned with FarCom system 1175 | -10/Exiles | Given EX-Vault access code 1204 | -10/Exiles | Opened EX-Vault 1225 | -10/Exiles | Found Cloak of Protection 1309 | -10/Exiles | Warned to stay clear of 0b10 Research branches 1444 | -10/Exiles | Discovered new exit (range 14) 1457 | -10/Exiles | Left Exiles lab with Cloak of Protection 1457 | -10/Exiles | Entered Mines 1550 | -9/Mines | Learned Materials non-interactive machine intel 1609 | -9/Mines | Received a Rocket Launcher from a helpful Derelict 1620 | -9/Mines | Destroyed by S-10 Pest with Light Assault Rifle Last Messages --------------- 01469_ Acquired Arm. Wheel. 01550_ Acquired derelict log, extracted data. Data stored: Materials non-interactive machine intel. 01559_ Acquired derelict log, extracted data. World map confirmed: -7/Zion. 01574_ K-01 Serf collects debris. 01603_ A derelict emerges from the shadows. 01604_ 7R-BVS(g): "Some of my friends down here think you need a mining laser when you travel the depths." 01605_ 7R-BVS(g): "They are crazy." 01606_ 7R-BVS(g): "Everyone knows a good old rocket launcher goes a long way." 01607_ 7R-BVS(g): "Need to get rid of a swarm? Done. Need a big hole in the wall? Done." 01608_ 7R-BVS(g): "Need a small hole in the wall? Leave that to the mining laser wimps, I say!" 01609_ 7R-BVS(g): "Would you like a rocket launcher? I know I would if I were you, so I'm going to lend you mine." 01609_ 7R-BVS(g) slips back into the shadows. 01618_ S-10 Pest destroyed. Map ----- +----------------------------------------------------+ | ?????????????????????????????????????????????# #?? | | ?????????????????????????????????????????????# ### | | ???????????????????????????#"???????????????## | | ???????????????????????????# ?????????####### | | ???????????????????????????# ????????## ## | | ???????????????????????????# ????????# ### | | ???????????????????????????# ????????# ##?? | | ???????????????????????????# ????????# ####??? | | ???????????????????????????# ##??????# ###?????? | | ??????????????????????????## ##?????# #????????? | | ??????????????????????????# s ####### #????????? | | ??????????????????????????# #????????? | | ??????????????????????????# ###### ##?????????? | | ??????????????????????????# ] #????# #??????????? | | ??????????????????????????# ##???# #??????????? | | ??????????????????????????# ##### ###????????? | | ??????????????????????????## ## #????????? | | ??????????????????????????##ss ### #????????? | | ?????????????????????????##%[ ### #????????? | | ?????????????????????????# = ## #????????? | | ????????????????????????## ##### ##????????? | | ????????????????????????# ##???# #?????????? | | ????????????????????????# ###????# #?????????? | | ???????????????????????## ##??????# #?????????? | | ??????????????????????## #?####??# #?????????? | | ??????????????????????# @ ### ##?# #?????????? | | ?????????????????????# ## #?# #?????????? | | ?????????????????????# ### ### #?????????? | | ?????????????????????## ###?# ## #?????????? | | ??????????????????????###????# #?????????? | | ?????????????????????????????## ######?????????? | | ??????????????????????????????#####??????????????? | | ?????????????????????????????????????????????????? | | | | | | | | | | | | | | | | | | | | | | | | | | | | | | | | | | | +----------------------------------------------------+ Best States ------------- Heat Dissipation 25 Energy Generation 10 Energy Capacity 250 Matter Stores 300 Matter Capacity 300 Sight Range 16 Terrain Scan Density 10 Cloak Strength 5 Armor Coverage 150 Power Shielding 33 Evasion (%) 55 Item Schematics ----------------- None Robot Schematics ------------------ None Fabricated ------------ Nothing Alien Tech Used ----------------- None Achievements -------------- None Challenges ------------ None Game ------ Seed OpticalDecoderThruster Manual? 0 Play Time 00:22:54 Cumulative 18.1 hours Start 2022.04.11 @ 02:15:42 End 2022.04.11 @ 02:39:35 Sessions 1 Manual Loads 0 Difficulty Rogue Special Mode None Game No. 65 Rogue 29 Adventurer 36 Explorer 0 Win Type - Total 0 Types 0/0/0/0/0/0/0/0/0 Lore% 15 Gallery% 20 Achievement% 15 Wizard Run 0 Options --------- ASCII 0 Keyboard 1 Movement Numpad Keybinds 0 Fullscreen 2 Font 18/X11Bold Map View 76x50 Tactical HUD 1 Map Filters NONE Filters NONE Steam 1 RUN: 87ac2200-2d0b-40ae-a4ce-d2d1d3c35938